bitfinex-derivatives/quotes_ETHF0:USTF0_20250828
["timestamp","ask_amount","ask_price","bid_price","bid_amount"]
[1756356743476,21.1465,4580.7,4580.6,1.6938]
[1756356743681,21.2613,4580.7,4580.6,1.6938]
[1756356743881,21.2613,4580.7,4580.6,1.2673]
[1756356744073,21.2613,4580.7,4580.6,0.9766]
[1756356744280,21.2613,4580.7,4580.6,1.6938]
[1756356744682,3.3226,4581.2,4580.6,1.3931]
[1756356744883,0.3425,4580.8,4580.7,0.3007]
[1756356745077,0.2141,4580.7,4580.4,0.3007]
[1756356745283,0.1148,4580.5,4580.3,0.6759]
[1756356745580,3.3071,4581.2,4580.5,0.3007]
[1756356745581,0.1148,4581.1,4580.5,0.3007]
[1756356745779,0.4573,4580.7,4580.6,0.5914]
[1756356746386,0.4573,4580.7,4580.6,0.3007]
[1756356746680,3.2078,4581.2,4580.6,0.6759]
[1756356746889,11.1623,4581.1,4581.0,1.3931]
[1756356747178,0.1148,4581.5,4581.0,1.6938]
[1756356747384,3.2078,4581.7,4581.6,1.6938]
[1756356747385,3.3666,4581.7,4581.6,1.6938]
[1756356747586,24.1546,4581.7,4581.6,1.6938]
[1756356747779,24.3383,4581.7,4581.6,1.2673]
[1756356748088,23.9928,4581.7,4581.6,1.6938]
[1756356748678,20.785,4581.7,4581.6,1.6938]
[1756356748979,31.5748,4582.1,4581.7,0.7272]
[1756356749182,31.9173,4582.1,4582.0,1.6938]
[1756356749383,52.6913,4582.1,4582.0,1.2673]
[1756356749580,52.6883,4582.1,4582.0,1.6938]
[1756356749787,31.9173,4582.1,4582.0,1.6938]
[1756356749978,31.46,4582.1,4582.0,1.6938]
[1756356750284,52.6823,4582.1,4582.0,1.6938]
[1756356750586,52.6823,4582.1,4582.0,1.2673]
[1756356750781,52.7816,4582.1,4581.7,0.4265]
[1756356751079,0.1148,4581.7,4581.5,0.4265]
[1756356751273,0.3425,4581.6,4581.5,1.1024]
[1756356751584,0.3425,4581.6,4581.5,1.4031]
[1756356751585,21.2143,4581.6,4581.5,1.4031]
[1756356751785,21.0995,4581.6,4581.5,1.6938]
[1756356752081,0.3425,4581.0,4580.9,0.3007]
[1756356752282,21.0875,4581.0,4580.7,3.2078]
[1756356752586,21.0875,4581.0,4579.6,0.39302]
[1756356752587,0.76859911,4580.9,4579.7,0.3007]
[1756356752789,0.1148,4580.4,4579.7,0.3007]
[1756356753085,0.2141,4580.5,4579.7,0.3007]
[1756356753275,0.1148,4580.3,4579.7,0.3007]
[1756356753589,4.227,4580.2,4579.6,3.2078]
[1756356753992,4.227,4580.2,4579.6,3.5085]
[1756356754188,0.1148,4580.1,4579.7,0.3007]
[1756356754486,0.0993,4580.3,4579.7,0.3007]
[1756356754487,0.1148,4579.9,4579.8,0.3007]
[1756356754878,0.2141,4579.9,4579.8,0.3007]
[1756356755179,0.0993,4579.9,4579.2,0.2907]
[1756356755379,0.1148,4579.8,4579.2,0.5914]
[1756356755576,0.0993,4579.9,4579.2,0.5914]
[1756356755782,3.2078,4579.6,4578.7,0.2907]
[1756356756089,0.1148,4579.5,4578.8,0.3007]
[1756356756281,20.761,4579.4,4578.8,0.3007]
[1756356756481,20.761,4579.4,4578.7,0.2907]
[1756356756781,0.1148,4579.5,4578.8,0.3007]
[1756356756986,14.932,4579.4,4578.9,0.4265]
[1756356758691,21.0051,4579.4,4578.9,0.5914]
[1756356758881,21.0051,4579.4,4579.0,1.0179]
[1756356758882,0.1148,4579.3,4579.0,1.0179]
[1756356759083,0.1148,4579.3,4578.6,3.2078]
[1756356759284,0.1148,4579.3,4579.2,0.5914]
[1756356759479,11.9388,4579.3,4579.2,0.3007]
[1756356759792,0.1148,4578.9,4578.1,3.2078]
[1756356759992,0.1148,4578.9,4578.2,0.4265]
[1756356760295,11.922,4578.8,4578.2,0.7172]
[1756356760682,0.1148,4578.7,4578.2,0.7172]
[1756356760894,0.1148,4578.7,4578.2,0.2907]
[1756356761192,11.922,4578.8,4578.1,3.2078]
[1756356761389,0.21841,4578.7,4577.1,0.4265]
[1756356761584,0.21841,4578.7,4576.7,0.3007]
[1756356761585,0.1148,4577.2,4576.7,0.3007]
[1756356761893,0.1148,4576.9,4576.3,3.2078]
[1756356762084,18.79,4576.8,4576.3,3.2078]
[1756356762287,18.79,4576.8,4576.7,1.0179]
[1756356762687,3.3226,4577.1,4576.5,0.39328]
[1756356762886,11.418,4577.0,4576.9,1.0179]
[1756356763087,20.954,4577.0,4576.4,1.0179]
[1756356763288,20.954,4577.0,4576.5,0.2185]
[1756356763588,3.2078,4577.6,4576.9,0.39325]
[1756356763784,3.2078,4578.1,4577.1,0.7172]
[1756356763991,14.583,4578.0,4577.8,1.41107]
[1756356764292,14.583,4578.0,4577.5,3.2078]
[1756356764293,31.451,4578.6,4578.5,1.0179]
[1756356764686,31.451,4578.6,4578.0,0.2907]
[1756356764993,31.451,4578.6,4577.9,0.3007]
[1756356765181,0.1148,4578.5,4577.9,0.3007]
[1756356766094,21.059,4578.4,4577.5,0.39319]
[1756356766286,0.1148,4578.5,4577.6,1.0179]
[1756356766491,21.055,4578.4,4577.6,1.0179]
[1756356766692,0.1148,4578.5,4577.9,0.2907]
[1756356766896,21.055,4578.3,4578.2,1.0179]
[1756356767291,31.451,4578.6,4577.8,3.2078]
[1756356767491,31.451,4578.6,4578.4,3.2078]
[1756356767687,31.451,4578.6,4578.5,1.0179]
[1756356768193,52.498,4578.6,4578.5,1.0179]
[1756356768790,3.2078,4579.4,4578.6,0.3931]
[1756356769091,11.632,4579.3,4579.2,1.0179]
[1756356769301,0.51,4579.8,4579.2,1.0179]
[1756356769499,0.51,4579.6,4579.4,0.5914]
[1756356769791,0.51,4579.6,4579.5,0.3007]
[1756356769997,21.548,4579.6,4579.5,0.3007]
[1756356770593,0.4945,4579.4,4579.2,0.3007]
[1756356770901,0.51,4579.2,4579.1,3.5085]
[1756356771494,0.51,4579.2,4579.1,3.2078]
[1756356771692,21.527,4579.2,4579.1,4.177]
[1756356771893,21.4122,4579.2,4579.1,4.177]
[1756356772294,0.3952,4579.2,4579.1,4.177]
[1756356772496,21.012,4579.2,4579.1,4.177]
[1756356772799,21.527,4579.2,4579.1,3.5012]
[1756356773592,25.1113,4579.2,4578.2,0.2934]
[1756356773801,0.1149,4579.0,4578.3,0.3916]
[1756356773997,0.1149,4579.0,4578.4,0.2842]
[1756356774193,15.811,4578.9,4578.5,0.2934]
[1756356774400,0.4001,4578.8,4578.3,0.2842]
[1756356774589,15.811,4578.9,4578.5,0.5776]
[1756356774794,0.515,4578.8,4578.5,0.2842]
[1756356775098,15.811,4578.9,4578.5,0.2842]
[1756356775298,15.811,4578.9,4578.6,0.6865]
[1756356775500,0.515,4578.8,4578.7,0.68649]
[1756356775699,0.515,4578.8,4578.7,0.2934]
[1756356777695,21.487,4578.8,4578.7,0.2934]
[1756356778802,22.1145,4578.8,4578.7,0.2934]
[1756356779605,1.1425,4578.8,4578.7,0.5776]
[1756356779801,17.3445,4578.8,4578.7,0.5776]
[1756356780205,1.1425,4578.8,4578.7,0.9743]
[1756356780401,17.2096,4578.8,4578.7,1.6476]
[1756356780903,3.2078,4579.4,4578.7,4.177]
[1756356780904,3.6079,4579.4,4578.7,4.177]
[1756356781101,3.6079,4579.4,4579.3,1.2509]
[1756356781102,0.6849,4579.4,4579.3,1.2509]
[1756356781306,20.946,4579.7,4579.6,0.9692]
[1756356781505,21.3461,4579.7,4579.6,0.9692]
[1756356781700,31.5739,4580.1,4579.6,0.9692]
[1756356781701,31.974,4580.1,4579.6,0.9692]
[1756356781898,20.961,4580.0,4579.9,0.39299]
[1756356782101,20.959,4580.0,4579.9,0.39299]
[1756356782502,31.459,4580.1,4579.9,1.36219]
[1756356782706,31.459,4580.1,4580.0,0.9692]
[1756356783216,31.459,4580.1,4580.0,4.9692]
[1756356783711,3.7228,4581.0,4580.3,0.9692]
[1756356784008,0.0993,4580.7,4580.6,0.2934]
[1756356784210,0.515,4580.4,4580.3,0.2934]
[1756356784409,0.515,4580.4,4579.8,3.5994]
[1756356784410,0.4001,4580.3,4579.8,3.5012]
[1756356784605,0.4994,4579.9,4579.8,3.5012]
[1756356784908,0.1149,4579.8,4579.3,3.2078]
[1756356785209,0.515,4579.8,4579.5,0.2934]
[1756356785408,20.942,4579.9,4579.4,0.67723]
[1756356785605,0.4001,4579.8,4579.6,0.2842]
[1756356785804,3.3071,4580.4,4580.1,0.2934]
[1756356786004,0.4001,4580.2,4580.1,0.2934]
[1756356786306,0.515,4580.2,4580.1,0.2934]
[1756356786502,0.1149,4580.1,4579.8,0.2934]
[1756356786705,0.515,4580.1,4579.8,0.2934]
[1756356786899,0.4994,4580.1,4579.8,0.2934]
[1756356787105,0.0993,4580.1,4579.8,0.2934]
[1756356787505,0.5152,4580.0,4579.7,0.67721]
[1756356787805,3.2078,4580.4,4579.3,3.2078]
[1756356788011,12.111,4580.3,4580.2,0.2934]
[1756356788311,0.0995,4580.9,4580.4,0.2842]
[1756356788606,0.5152,4580.6,4580.5,0.2934]
[1756356788814,21.4302,4580.6,4580.5,0.5776]
[1756356789317,21.4272,4580.6,4580.5,0.5776]
[1756356789609,21.4192,4580.6,4580.5,0.5776]
[1756356789812,21.4192,4580.6,4580.5,0.2934]
[1756356790112,20.904,4580.6,4580.0,0.39298]
[1756356790306,0.5152,4580.6,4580.3,0.2934]
[1756356790612,20.904,4580.5,4580.4,0.2934]
[1756356791006,20.904,4580.5,4579.9,0.3916]
[1756356791007,21.5187,4580.5,4579.9,0.3916]
[1756356791204,20.904,4580.5,4579.8,3.6008]
[1756356791401,20.904,4580.5,4579.8,3.2078]
[1756356791604,0.4001,4580.4,4579.8,3.8942]
[1756356791799,4.05638747,4580.9,4579.8,3.5012]
[1756356791800,0.2146,4580.1,4579.8,3.5012]
[1756356792013,0.1151,4579.9,4579.8,3.5012]
[1756356792305,0.5152,4579.9,4579.8,3.5012]
[1756356792611,21.3962,4579.9,4579.8,3.5012]
[1756356792813,21.3962,4579.9,4579.8,4.177]
[1756356793007,0.5152,4580.3,4580.1,0.39297]
[1756356793309,12.998,4581.4,4581.0,0.5776]
[1756356793506,3.2078,4581.5,4581.2,0.5776]
[1756356793507,12.998,4581.3,4581.2,0.5776]
[1756356793703,13.3981,4581.3,4581.2,0.5776]
[1756356794011,13.3981,4581.3,4581.2,0.9692]
[1756356794511,20.905,4581.3,4581.2,0.2842]
[1756356794712,21.0201,4581.3,4581.2,0.5776]
[1756356794912,21.4202,4581.3,4581.2,0.9692]
[1756356795216,20.905,4581.3,4581.2,0.9692]
[1756356795510,20.898,4581.3,4580.7,44.99011]
[1756356795705,20.898,4581.3,4581.1,0.2934]
[1756356796012,0.4001,4581.2,4581.1,0.9692]
[1756356796507,20.889,4581.4,4580.8,0.9692]
[1756356796811,21.0041,4581.4,4581.3,0.5776]
[1756356797110,21.0041,4581.4,4581.3,0.2934]
[1756356797412,21.2781,4581.4,4581.3,0.9692]
[1756356797806,21.3932,4581.4,4581.3,0.9692]
[1756356798004,21.3932,4581.4,4581.3,0.5776]
[1756356798406,20.878,4581.6,4581.5,0.5776]
[1756356798711,0.4001,4581.9,4581.5,0.9692]
[1756356798913,0.4001,4581.9,4581.7,0.5776]
[1756356799114,20.895,4581.8,4581.4,0.39286]
[1756356799411,20.895,4581.8,4581.6,0.5776]
[1756356799613,0.4001,4581.7,4581.6,0.9692]
[1756356800007,20.895,4581.8,4581.6,0.39284]
[1756356800210,20.895,4581.8,4581.7,0.9692]
[1756356800606,0.4001,4582.1,4581.8,0.39283]
[1756356800912,0.4001,4582.1,4582.0,0.9692]
[1756356801311,0.4001,4582.1,4582.0,1.6476]
[1756356801702,0.8367,4582.4,4582.3,0.6709]
[1756356802011,21.8921,4582.4,4582.3,1.6691]
[1756356802413,22.0034,4582.4,4582.3,1.6691]
[1756356802613,1.1364,4582.4,4582.3,1.6691]
[1756356802808,22.0004,4582.4,4582.3,1.6691]
[1756356803012,22.1001,4582.4,4582.3,0.2881]
[1756356803215,22.0004,4582.4,4582.3,0.2881]
[1756356803413,22.0004,4582.4,4582.3,0.4755]
[1756356803617,21.9904,4582.4,4582.3,1.2401]
[1756356804115,21.9904,4582.4,4581.7,3.88173]
[1756356804320,0.1595,4582.0,4581.9,1.2401]
[1756356804513,21.8651,4582.0,4581.9,1.77382]
[1756356804703,21.2812,4582.0,4581.9,1.77382]
[1756356804904,21.6807,4582.0,4581.9,1.77382]
[1756356805108,21.9804,4582.0,4581.9,2.06192]
[1756356805316,1.1364,4582.0,4581.9,2.06192]
[1756356805511,20.843,4582.0,4581.9,2.06192]
[1756356805710,31.9678,4582.5,4582.0,0.39281]
[1756356805911,20.9935,4582.4,4582.3,0.1874]
[1756356806114,21.9704,4582.4,4582.3,0.9585]
[1756356806416,31.453,4582.5,4582.4,0.9982]
[1756356806608,52.9056,4582.5,4582.4,0.5692]
[1756356806804,52.9056,4582.5,4582.4,0.9585]
[1756356807005,52.9056,4582.5,4582.4,0.2881]
[1756356807006,53.3051,4582.5,4582.4,0.2881]
[1756356807210,52.9056,4582.5,4582.1,0.2881]
[1756356807410,0.7369,4582.1,4582.0,0.5692]
[1756356807612,21.9574,4582.1,4582.0,0.5692]
[1756356807812,22.0571,4582.1,4581.7,3.60063]
[1756356808013,0.6216,4581.8,4581.7,3.88873]
[1756356808208,0.6216,4581.8,4581.7,4.55913]
[1756356808209,0.2997,4581.8,4581.7,4.55913]
[1756356808414,1.1364,4582.2,4582.1,1.2401]
[1756356808618,21.9514,4582.2,4582.1,1.6691]
[1756356809512,21.9514,4582.2,4582.1,0.7566]
[1756356809720,21.9514,4582.2,4582.1,0.2881]
[1756356809915,21.9514,4582.2,4581.7,4.31074]
[1756356810123,0.6992,4581.9,4581.7,3.88174]
[1756356810315,1.1364,4581.8,4581.7,4.35724]
[1756356810514,1.1364,4581.8,4581.7,4.55914]
[1756356810722,21.9474,4581.8,4581.7,4.1663]
[1756356811017,0.5148,4581.7,4581.3,0.39287]
[1756356811223,1.1364,4581.4,4581.3,1.63297]
[1756356811520,21.9414,4581.4,4581.3,2.06197]
[1756356811824,21.8261,4581.4,4581.3,2.06197]
[1756356813320,0.1153,4581.8,4581.3,1.6691]
[1756356813620,0.2777,4581.8,4581.7,5.26974]
[1756356813819,21.8021,4581.8,4581.7,5.26974]
[1756356814020,21.8021,4581.8,4581.7,4.84074]
[1756356814021,21.9174,4581.8,4581.7,4.84074]
[1756356814221,1.1364,4581.8,4581.7,4.84074]
[1756356814430,21.9154,4581.8,4581.7,4.84074]
[1756356814930,1.0211,4582.1,4582.0,1.6691]
[1756356815222,21.9064,4582.1,4582.0,0.2881]
[1756356815427,0.6216,4581.8,4581.7,3.2078]
[1756356815721,1.1364,4581.8,4581.7,4.8769]
[1756356816428,1.1364,4581.8,4581.7,4.4479]
[1756356816618,1.2361,4581.8,4581.7,3.4959]
[1756356817019,1.1364,4581.8,4581.7,3.4959]
[1756356817319,1.1364,4581.8,4581.7,4.4479]
[1756356817519,21.8954,4581.8,4581.7,4.4479]
[1756356818721,21.9951,4581.8,4581.7,3.4959]
[1756356818923,21.9951,4581.8,4581.7,3.2078]
[1756356819425,21.3806,4581.8,4581.2,3.2078]
[1756356819624,0.6216,4581.3,4581.2,3.2078]
[1756356819818,21.8724,4581.3,4581.2,3.4959]
[1756356820326,21.9721,4581.3,4581.2,3.4959]
[1756356820629,26.12819504,4581.3,4580.0,0.2881]
[1756356820823,3.2078,4580.5,4579.8,0.2811]
[1756356821024,0.55231504,4580.4,4580.3,1.6691]
[1756356821221,3.2078,4581.0,4580.9,0.6709]
[1756356821424,3.2078,4581.0,4580.9,1.6691]
[1756356821425,3.39438565,4581.0,4580.9,1.6691]
[1756356821628,24.20338565,4581.0,4580.9,1.6691]
[1756356822120,24.20338565,4581.0,4580.9,1.2401]
[1756356822323,24.20338565,4581.0,4580.4,0.4755]
[1756356822527,0.73176353,4580.9,4579.9,4.3934]
[1756356822720,0.73176353,4580.8,4580.0,0.2881]
[1756356822922,0.73176353,4580.7,4580.6,1.2401]
[1756356823122,12.79878061,4580.7,4580.6,1.6691]
[1756356823420,12.79872701,4580.7,4580.6,0.2881]
[1756356823724,12.79872701,4580.7,4580.0,0.2881]
[1756356823725,17.56211215,4580.7,4580.0,0.2881]
[1756356823929,0.95016216,4580.6,4580.0,0.2881]
[1756356824124,0.73180215,4580.5,4580.0,0.2881]
[1756356824436,3.93935964,4580.4,4579.5,0.959]
[1756356824624,21.53355964,4580.3,4579.6,0.5692]
[1756356824825,0.18672701,4580.2,4579.6,0.5692]
[1756356825129,20.99172701,4580.1,4579.4,3.2078]
[1756356825325,0.18672701,4580.0,4579.4,3.2078]
[1756356825630,20.98972701,4579.9,4579.8,1.2401]
[1756356825931,20.98972701,4579.9,4579.8,0.9585]
[1756356826122,0.18653158,4579.9,4579.8,0.2881]
[1756356826325,20.99253158,4579.9,4579.8,0.2881]
[1756356826733,20.98953158,4579.9,4579.8,1.6691]
[1756356826927,0.18653158,4579.9,4579.8,1.6691]
[1756356827120,20.99053158,4579.9,4579.8,1.6691]
[1756356827323,20.99153158,4579.9,4579.8,1.6691]
[1756356827525,20.99153158,4579.9,4579.8,0.2881]
[1756356829129,0.18653158,4579.9,4579.6,0.2811]
[1756356829336,7.078,4579.8,4579.7,0.5692]
[1756356829629,0.18626454,4579.8,4579.7,1.6691]
[1756356830127,4.39126454,4579.8,4579.7,1.6691]
[1756356831733,6.10326454,4579.8,4579.7,1.6691]
[1756356832128,7.72726454,4579.8,4579.7,1.6691]
[1756356832828,3.2078,4580.9,4579.7,2.0621]
[1756356833029,9.26915614,4580.8,4579.9,0.2955]
[1756356833230,9.26915614,4580.8,4580.0,0.4916]
[1756356833231,0.18615614,4580.7,4580.0,0.4916]
[1756356833430,0.18615614,4580.6,4580.0,0.4916]
[1756356833734,0.18615614,4580.5,4579.9,1.2492]
[1756356833926,0.18615614,4580.4,4580.0,0.2952]
[1756356834121,20.94715614,4580.3,4580.0,0.2952]
[1756356834423,0.18615614,4580.2,4579.9,0.2952]
[1756356834623,0.18615614,4580.1,4579.9,0.2952]
[1756356834830,0.18615614,4580.0,4579.9,0.2952]
[1756356835024,0.18615614,4580.2,4579.9,0.2952]
[1756356835225,0.18615614,4580.1,4579.9,0.2952]
[1756356835424,20.761,4580.3,4579.9,0.2952]
[1756356835425,0.18615614,4580.0,4579.9,0.2952]
[1756356835629,0.18615614,4580.2,4579.9,0.2952]
[1756356835820,0.18615614,4580.1,4579.6,1.0528]
[1756356836021,0.18615614,4580.0,4579.5,0.6585]
[1756356836225,0.18615614,4579.9,4579.6,0.4919]
[1756356836431,20.761,4580.3,4579.8,0.2952]
[1756356836630,0.18620329,4580.2,4579.8,0.2952]
[1756356836836,0.18620329,4580.2,4579.4,3.5033]
[1756356836837,0.18620329,4580.1,4579.4,3.2078]
[1756356837032,31.63520329,4580.0,4579.4,3.2078]
[1756356837233,0.18620329,4579.9,4579.4,3.2078]
[1756356837531,31.449,4580.0,4579.4,3.503]
[1756356837532,0.18620329,4579.8,4579.4,3.503]
[1756356837727,31.449,4580.0,4579.4,3.503]
[1756356837728,0.18620329,4579.7,4579.4,3.503]
[1756356837927,20.92420329,4579.6,4579.4,3.503]
[1756356838126,0.18620329,4579.5,4579.4,3.503]
[1756356838730,0.18620329,4579.5,4579.4,0.2952]
[1756356839028,20.91820329,4579.5,4579.4,0.2952]
[1756356839724,20.91120329,4579.5,4579.4,0.2952]
[1756356840523,25.12957329,4579.5,4578.7,0.2952]
[1756356840724,3.2078,4579.2,4578.7,0.4916]
[1756356840924,0.18620329,4579.1,4578.5,0.4289]
[1756356841128,20.89720329,4579.0,4578.9,0.2952]
[1756356841832,20.89720329,4579.0,4578.9,1.6781]
[1756356842027,20.90013269,4579.0,4578.9,1.6781]
[1756356842229,0.18913269,4579.0,4578.9,1.6781]
[1756356842533,20.89313269,4579.0,4578.9,0.2952]
[1756356842931,20.89313188,4579.0,4578.9,0.2952]
[1756356843234,20.89313188,4579.0,4578.6,0.2952]
[1756356843442,0.18913188,4578.9,4578.3,3.8663]
[1756356843737,0.18913188,4578.8,4577.8,4.1618]
[1756356843933,0.18913188,4578.7,4577.9,0.9537]
[1756356844134,0.18913188,4578.6,4578.0,0.9537]
[1756356844338,0.18913188,4578.5,4578.2,0.5907]
[1756356844529,20.89113188,4578.4,4578.3,0.2952]
[1756356844930,0.18913188,4578.4,4578.3,0.2952]
[1756356845135,20.88713188,4578.4,4578.3,0.5907]
[1756356845337,20.88713188,4578.4,4578.3,1.6781]
[1756356845535,20.88713188,4578.4,4578.3,5.6781]
[1756356846034,20.704,4578.7,4578.6,0.3819]
[1756356846241,21.5758,4578.7,4578.6,1.6781]
[1756356846838,21.8547,4578.7,4578.6,0.9726]
[1756356847139,0.8718,4578.5,4578.4,0.5907]
[1756356847342,0.8718,4578.5,4578.4,0.9726]
[1756356847541,1.1507,4578.5,4578.4,0.9726]
[1756356847744,0.8718,4578.5,4578.4,1.2492]
[1756356848044,0.8718,4578.5,4578.4,1.6781]
[1756356848646,1.1507,4578.5,4578.4,1.2492]
[1756356848847,0.8718,4578.5,4578.4,1.6781]
[1756356849145,21.5748,4578.5,4578.4,1.6781]
[1756356849346,21.8537,4578.5,4578.4,1.2492]
[1756356849644,21.8537,4578.5,4578.4,0.9726]
[1756356850139,21.8537,4578.5,4578.0,0.4289]
[1756356850140,0.4704,4578.1,4578.0,0.5907]
[1756356850346,1.1507,4578.1,4578.0,0.5907]
[1756356850548,21.1554,4578.1,4578.0,1.6781]
[1756356851048,20.682,4578.1,4578.0,0.6585]
[1756356851242,20.681,4578.1,4578.0,0.6585]
[1756356851444,3.2078,4578.5,4578.4,0.1855]
[1756356851645,14.5688,4578.5,4578.4,1.6781]
[1756356851839,3.2078,4579.0,4578.9,0.4621]
[1756356852141,21.5508,4579.0,4578.9,1.6781]
[1756356852445,0.8718,4578.7,4578.6,0.5907]
[1756356852642,0.4014,4578.6,4577.9,0.4289]
[1756356852947,21.5518,4578.5,4578.4,1.2492]
[1756356853148,21.5518,4578.5,4578.4,1.6781]
[1756356853542,0.4704,4578.5,4578.4,0.5907]
[1756356853845,12.4034,4578.5,4578.4,1.2492]
[1756356854048,12.4034,4578.5,4578.4,1.6781]
[1756356854447,13.0837,4578.5,4578.4,0.5907]
[1756356854647,12.8048,4578.5,4578.1,0.2952]
[1756356854847,0.8718,4578.2,4578.1,1.6781]
[1756356855144,1.1507,4578.2,4578.1,1.2492]
[1756356855349,0.8718,4578.2,4578.1,1.6781]
[1756356855650,21.5668,4578.2,4578.1,1.6781]
[1756356856346,0.8718,4578.2,4578.1,1.6781]
[1756356856540,0.5962,4578.7,4578.1,0.1855]
[1756356856742,3.6092,4579.0,4578.9,1.6781]
[1756356857049,14.3358,4579.0,4578.9,1.6781]
[1756356857847,14.5226697,4579.0,4578.9,1.6781]
[1756356858450,0.1868697,4579.0,4578.9,4.8859]
[1756356858751,20.8808697,4579.0,4578.9,1.6781]
[1756356858947,21.3512697,4579.0,4578.9,1.6781]
[1756356859149,21.7526697,4579.0,4578.9,1.6781]
[1756356859351,1.0586697,4579.0,4578.9,1.2492]
[1756356859652,22.0185697,4579.0,4578.9,0.5907]
[1756356859853,21.3382697,4579.0,4578.7,0.5907]
[1756356860056,1.1507,4578.8,4578.7,0.5907]
[1756356860351,1.3375697,4578.8,4578.7,0.5907]
[1756356860650,1.0586697,4578.8,4578.7,1.2492]
[1756356860850,1.0586697,4578.8,4578.7,1.6781]
[1756356861444,13.5106697,4578.8,4578.7,1.6781]
[1756356861855,20.8608697,4578.8,4578.7,1.6781]
[1756356862048,0.1868697,4578.8,4578.7,1.6781]
[1756356862256,12.2138697,4578.8,4578.7,1.6781]
[1756356862643,0.4282,4579.3,4578.7,4.8769]
[1756356862848,20.86002275,4579.2,4578.8,1.0305]
[1756356863148,0.18702275,4579.1,4579.0,1.689]
[1756356863348,1.09332275,4579.1,4579.0,1.689]
[1756356863745,21.06472275,4579.1,4579.0,1.689]
[1756356863944,0.38872275,4579.1,4579.0,1.689]
[1756356864152,21.76432275,4579.1,4579.0,1.689]
[1756356864752,20.85502275,4579.1,4579.0,1.689]
[1756356865049,21.76332275,4579.1,4579.0,1.689]
[1756356865257,22.04392275,4579.1,4579.0,1.2626]
[1756356865854,0.9063,4578.5,4578.4,4.4704]
[1756356866054,21.76632275,4578.5,4578.4,4.8968]
[1756356866857,21.33812275,4578.5,4578.4,4.8968]
[1756356867757,21.05672275,4578.5,4578.4,4.8968]
[1756356869058,21.05172275,4578.5,4578.4,4.8968]
[1756356869560,0.18702275,4578.5,4578.4,4.8968]
[1756356869761,21.74532275,4578.5,4578.4,4.8968]
[1756356870557,21.31412275,4578.5,4578.4,4.8968]
[1756356870756,0.18702275,4578.5,4578.4,4.8968]
[1756356870960,20.83502275,4578.5,4578.4,4.8968]
[1756356871161,0.18702275,4578.5,4578.4,4.8968]
[1756356872955,20.648,4578.6,4578.4,4.25941]
[1756356873162,20.648,4578.6,4578.5,1.689]
[1756356873367,21.73710856,4578.6,4578.5,1.689]
[1756356873762,21.73710855,4578.6,4578.5,1.689]
[1756356874360,22.01770855,4578.6,4578.5,1.2626]
[1756356874559,21.73710855,4578.6,4578.5,1.689]
[1756356874863,22.01770855,4578.6,4578.5,0.7928]
[1756356875160,1.1869,4578.5,4578.4,3.2078]
[1756356875360,1.36970855,4578.5,4578.4,3.2078]
[1756356876563,1.36970855,4578.5,4578.4,3.8119]
[1756356876763,1.36970855,4578.5,4578.4,4.4704]
[1756356877263,1.36970855,4578.5,4578.4,3.2078]
[1756356877457,22.01770855,4578.5,4578.4,3.2078]
[1756356878366,20.82980855,4578.5,4578.4,4.8968]
[1756356878768,21.73610855,4578.5,4578.4,4.8968]
[1756356879154,0.88740855,4578.5,4578.4,4.8968]
[1756356879362,9.63150855,4578.5,4578.4,4.8968]
[1756356879561,10.33610855,4578.5,4578.4,4.8968]
[1756356880463,0.18280855,4578.5,4578.4,4.8968]
[1756356880669,18.40680855,4578.5,4578.4,4.8968]
[1756356881167,0.18280855,4578.5,4578.4,4.8968]
[1756356883270,20.647,4578.7,4578.5,0.39311]
[1756356883470,20.647,4578.7,4578.6,1.689]
[1756356883669,20.82996797,4578.7,4578.6,1.689]
[1756356883865,0.18296797,4578.7,4578.6,1.689]
[1756356884575,0.38466797,4578.7,4578.6,1.689]
[1756356884776,1.08926797,4578.7,4578.6,1.689]
[1756356889279,13.83026797,4578.7,4578.6,1.689]
[1756356890177,13.40206797,4578.7,4578.6,1.689]
[1756356890376,13.83026797,4578.7,4578.6,1.689]
[1756356891078,14.11086797,4578.7,4578.6,1.689]
[1756356891372,13.83026797,4578.7,4578.6,1.689]
[1756356891773,1.08926797,4578.7,4578.6,1.689]
[1756356891969,21.73226797,4578.7,4578.6,1.689]
[1756356893881,21.73239156,4578.7,4578.6,1.689]
[1756356894379,21.73139156,4578.7,4578.6,1.689]
[1756356894581,21.73139192,4578.7,4578.6,1.689]
[1756356894778,0.4046,4578.6,4578.4,3.7981]
[1756356894974,0.65029192,4578.5,4578.4,3.7981]
[1756356895180,1.35609192,4578.5,4578.4,3.7981]
[1756356895683,1.35609192,4578.5,4578.4,3.2078]
[1756356895977,0.8718,4578.0,4577.9,4.8541]
[1756356896169,2.50109192,4578.0,4577.9,4.8541]
[1756356897282,2.50109192,4578.0,4577.9,4.69023354]
[1756356897583,0.18309192,4578.0,4577.9,4.69023354]
[1756356898285,0.65029192,4578.0,4577.9,4.69023354]
[1756356898482,1.05489192,4578.0,4577.9,4.69023354]
[1756356898876,4.36189192,4578.0,4577.9,4.69023354]
[1756356899180,7.50289192,4578.0,4577.9,4.69023354]
[1756356900481,7.80409192,4578.0,4577.6,0.3081]
[1756356900783,1.173,4577.5,4577.4,4.4456]
[1756356900984,1.35609192,4577.5,4577.4,4.4456]
[1756356901184,1.35609192,4577.5,4577.4,4.8541]